bitfinex/quotes_ETHUSD_20250813
["timestamp","ask_amount","ask_price","bid_price","bid_amount"]
[1755045458240,6.258,4614.8,4614.7,24.207185]
[1755045458458,6.258,4614.8,4614.7,25.233583]
[1755045458661,6.15,4614.8,4614.7,27.311475]
[1755045458870,6.15,4614.8,4614.7,29.4784631]
[1755045459348,6.15,4614.8,4614.7,33.7538351]
[1755045459551,7.38,4614.8,4614.7,31.586847]
[1755045459755,7.38,4614.8,4614.7,33.3496731]
[1755045460054,7.38,4614.8,4614.7,31.182685]
[1755045460265,7.38,4614.8,4614.7,36.900722]
[1755045460420,7.38,4614.8,4614.7,39.0677101]
[1755045460624,7.38,4614.8,4614.7,36.900722]
[1755045460854,7.38,4614.8,4614.7,37.008722]
[1755045461064,8.61,4614.8,4614.7,39.1757101]
[1755045462331,9.84,4614.8,4614.7,39.1757101]
[1755045463627,11.07,4614.8,4614.7,39.1757101]
[1755045465343,12.3,4614.8,4614.7,39.1757101]
[1755045467039,13.53,4614.8,4614.7,39.1757101]
[1755045467242,13.53,4614.8,4614.7,36.3056101]
[1755045467429,3.69,4615.2,4615.1,2.16680028]
[1755045467626,3.69,4615.2,4615.1,35.54280028]
[1755045467848,3.69,4615.2,4615.1,35.65080028]
[1755045468132,3.69,4615.2,4615.1,38.52090028]
[1755045468528,4.92,4615.2,4615.1,38.52090028]
[1755045470059,6.15,4615.2,4615.1,38.52090028]
[1755045471428,7.38,4615.2,4615.1,38.52090028]
[1755045472766,8.61,4615.2,4615.1,38.52090028]
[1755045474763,9.84,4615.2,4615.1,32.27480028]
[1755045474967,9.84,4615.2,4615.1,32.07905428]
[1755045475540,9.84,4615.2,4615.1,35.64980028]
[1755045476174,11.07,4615.2,4615.1,32.27480028]
[1755045476338,11.07,4615.2,4615.1,35.64980028]
[1755045477372,11.07,4615.2,4615.1,32.27480028]
[1755045477670,12.3,4615.2,4615.1,35.64980028]
[1755045478186,12.3,4615.2,4615.1,38.51990028]
[1755045478369,12.3,4615.2,4615.1,35.64980028]
[1755045478958,13.53,4615.2,4615.1,35.64980028]
[1755045479363,13.53,4615.2,4615.1,38.54540028]
[1755045479560,13.53,4615.2,4615.1,35.64980028]
[1755045480271,14.76,4615.2,4615.1,35.64980028]
[1755045480970,1e-08,4615.2,4615.1,38.54540028]
[1755045481170,0.002,4616.2,4615.7,2.16651862]
[1755045481370,0.002,4616.2,4616.1,4.01633088]
[1755045481552,1.1578,4616.3,4616.2,34.01628395]
[1755045481741,1.1578,4616.3,4616.2,42.05898395]
[1755045481939,2.30100001,4616.7,4616.2,15.959923]
[1755045482141,2.7339,4616.6,4616.3,33.375]
[1755045482344,2.301,4616.5,4616.4,30.0]
[1755045482539,2.301,4616.5,4616.4,30.108]
[1755045482771,2.7339,4616.5,4616.4,30.108]
[1755045483054,2.7339,4616.5,4616.4,24.086669]
[1755045483259,2.7339,4616.5,4616.4,24.735951]
[1755045483670,2.7339,4616.5,4616.4,34.132282]
[1755045484069,2.7339,4616.5,4616.4,34.29533226]
[1755045484266,2.7339,4616.5,4616.4,30.92033226]
[1755045484466,3.9639,4616.5,4616.4,24.08033526]
[1755045484669,3.9639,4616.5,4616.4,33.65005026]
[1755045484870,3.9639,4616.5,4616.4,26.11995726]
[1755045485081,3.9639,4616.5,4616.4,6.97998926]
[1755045485665,3.9639,4616.5,4616.4,3.65005026]
[1755045485985,5.1939,4616.5,4616.4,3.65005026]
[1755045486183,5.1939,4616.5,4616.4,7.01452526]
[1755045486388,5.1939,4616.5,4616.4,7.01252526]
[1755045486682,5.1939,4616.5,4616.4,9.74999526]
[1755045486892,5.1939,4616.5,4616.4,6.69607426]
[1755045487065,6.4239,4616.5,4616.4,10.07307426]
[1755045487259,6.4239,4616.5,4616.4,6.69607426]
[1755045487452,6.4239,4616.5,4616.4,10.07307426]
[1755045487761,6.4239,4616.5,4616.4,7.86999126]
[1755045488680,7.6539,4616.5,4616.4,7.86999126]
[1755045488888,7.6539,4616.5,4616.4,3.64805026]
[1755045489090,7.6539,4616.5,4616.4,25.60973626]
[1755045489259,7.6539,4616.5,4616.4,20.40688426]
[1755045489585,7.6539,4616.5,4616.4,18.17484726]
[1755045489781,7.6539,4616.5,4616.4,18.12074826]
[1755045489990,8.8839,4616.5,4616.4,16.62374826]
[1755045490158,8.8839,4616.5,4616.4,13.39887626]
[1755045490666,9.89549,4616.5,4616.4,13.39887626]
[1755045490867,9.89549,4616.5,4616.4,16.72769026]
[1755045491391,10.1139,4616.5,4616.4,17.37708526]
[1755045491758,10.1139,4616.5,4616.4,4.29444526]
[1755045492166,10.1139,4616.5,4616.4,24.61283726]
[1755045492373,10.1139,4616.5,4616.4,21.47201626]
[1755045492567,11.3439,4616.5,4616.4,18.14304926]
[1755045492995,11.3439,4616.5,4616.4,18.74488526]
[1755045493166,11.3439,4616.5,4616.4,15.16542526]
[1755045493678,8.61,4616.5,4616.4,15.16542526]
[1755045493884,12.141,4616.5,4616.4,34.29444526]
[1755045494067,12.5739,4616.5,4616.4,34.29444526]
[1755045495389,13.8039,4616.5,4616.4,34.29444526]
[1755045495607,11.07,4616.5,4616.4,34.29444526]
[1755045496888,12.3,4616.5,4616.4,34.29444526]
[1755045497481,15.0339,4616.5,4616.4,19.37197926]
[1755045497670,15.0339,4616.5,4616.4,20.00170226]
[1755045497986,16.76849,4616.5,4616.2,5.193]
[1755045498191,2.7339,4616.4,4616.3,3.374]
[1755045498570,3.2839,4616.4,4616.3,3.374]
[1755045499567,4.5139,4616.4,4616.3,3.374]
[1755045499769,4.5139,4616.4,4616.2,5.193]
[1755045499971,3.98655568,4616.4,4616.3,3.374]
[1755045500470,3.98655568,4616.4,4616.2,5.193]
[1755045500670,2.7339,4616.3,4616.2,5.193]
[1755045500888,2.7339,4616.3,4616.2,8.567]
[1755045501700,3.2839,4616.3,4616.2,8.567]
[1755045501901,5.49045568,4616.3,4616.2,8.567]
[1755045502302,6.72045568,4616.3,4616.2,8.567]
[1755045502601,8.8866927,4616.3,4616.2,5.193]
[1755045502986,6.17045568,4616.3,4614.9,5.192]
[1755045503166,2.71684723,4615.0,4614.9,5.192]
[1755045503373,5.45074723,4615.0,4614.9,8.566]
[1755045503603,0.55,4614.8,4614.7,0.001]
[1755045503772,0.55,4614.8,4614.7,8.567]
[1755045503973,3.2839,4614.8,4614.7,8.568]
[1755045504699,5.45084114,4614.8,4614.7,8.568]
[1755045504870,5.45084114,4614.8,4614.7,8.569]
[1755045505072,5.45084114,4614.8,4614.7,5.194]
[1755045505293,4.5139,4614.8,4614.7,8.569]
[1755045506797,5.7439,4614.8,4614.7,8.569]
[1755045507303,2.46,4614.8,4614.7,15.891063]
[1755045508006,3.69,4614.8,4614.7,15.891063]
[1755045508209,3.69,4614.8,4614.7,16.121181]
[1755045509283,4.92,4614.8,4614.7,29.794708]
[1755045509500,4.92,4614.8,4614.7,38.677]
[1755045509877,4.92,4614.8,4614.7,43.5839881]
[1755045510699,6.15,4614.8,4614.7,43.86288771]
[1755045511400,1.23,4615.0,4614.9,2.16689419]
[1755045511603,1e-08,4615.0,4614.9,35.54189419]
[1755045511773,1e-08,4615.0,4614.9,38.5607938]
[1755045511973,1.23000001,4615.0,4614.9,38.5607938]
[1755045512207,1e-08,4615.0,4614.9,38.5607938]
[1755045512904,1.23,4616.3,4616.2,2.16628395]
[1755045513215,2.46,4616.4,4616.3,32.16623702]
[1755045513502,1.23000001,4616.7,4616.4,2.1661901]
[1755045513704,1.23000001,4616.7,4616.6,2.16609626]
[1755045513879,1e-08,4617.0,4616.9,2.16595551]
[1755045514080,1e-08,4617.0,4616.9,40.73395551]
[1755045514403,1e-08,4617.0,4616.9,43.86085512]
[1755045514606,1.23000001,4617.0,4616.9,43.86085512]
[1755045514789,1.23000001,4617.0,4616.9,43.94739812]
[1755045516197,0.002,4617.3,4617.2,2.16581477]
[1755045516506,0.002,4617.3,4617.2,35.64881477]
[1755045516718,0.002,4617.3,4617.2,38.38881477]
[1755045517414,0.002,4617.7,4617.4,2.16572096]
[1755045517731,0.002,4617.7,4617.4,35.53972096]
[1755045517884,0.002,4617.7,4617.4,38.27972096]
[1755045518281,0.002,4617.7,4617.4,38.82972096]
[1755045518485,0.002,4617.7,4617.6,2.16562716]
[1755045518685,0.002,4617.7,4617.6,35.64762716]
[1755045518881,1.232,4617.7,4617.6,38.38762716]
[1755045519526,1.23,4619.3,4617.8,2.16553337]
[1755045519734,1.23,4619.3,4617.8,35.53853337]
[1755045519897,1.23,4619.3,4617.8,35.81743298]
[1755045520088,1.23,4619.3,4617.8,38.55743298]
[1755045520292,1.232,4617.9,4617.8,38.55743298]
[1755045520931,1.23,4619.3,4618.0,2.71543958]
[1755045521136,1.23,4619.3,4618.3,2.16529891]
[1755045521317,1.23,4619.3,4618.3,36.08829891]
[1755045521624,2.46,4618.4,4618.3,38.93629891]
[1755045521783,2.46,4618.4,4618.3,39.21519852]
[1755045523136,3.69,4618.4,4618.3,38.93629891]
[1755045523453,3.69,4618.4,4618.3,39.21519852]
[1755045524510,4.92,4618.4,4618.3,39.21519852]
[1755045526026,6.15,4618.4,4618.3,39.43159852]
[1755045526428,6.15,4618.4,4618.3,36.41269891]
[1755045527433,7.38,4618.4,4618.3,36.84379891]
[1755045528247,7.38,4618.4,4618.3,36.84279891]
[1755045528431,7.38,4618.4,4618.3,39.15169891]
[1755045528635,8.61,4618.4,4618.3,41.84969891]
[1755045529437,8.61,4618.4,4618.3,39.54079891]
[1755045529635,8.61,4618.4,4618.3,39.10969891]
[1755045530019,10.84,4618.4,4618.3,39.10969891]
[1755045530846,10.84,4618.4,4618.3,39.10869891]
[1755045531134,10.84,4618.4,4618.3,38.89229891]
[1755045531304,12.07,4618.4,4618.3,38.89229891]
[1755045531836,12.072,4618.4,4618.3,38.89229891]
[1755045532607,12.072,4618.4,4618.3,38.34229891]
[1755045532836,13.302,4618.4,4618.3,38.34229891]
[1755045533335,13.302,4618.4,4618.3,43.53129891]
[1755045534239,14.532,4618.4,4618.3,43.53129891]
[1755045534906,17.4099,4618.4,4618.3,40.16029891]
[1755045535119,17.4099,4618.4,4618.3,43.53129891]
[1755045535640,18.6399,4618.4,4618.3,43.53129891]
[1755045536432,15.762,4618.4,4618.3,43.53129891]
[1755045536930,16.992,4618.4,4618.3,43.53129891]
[1755045537642,19.8699,4618.4,4618.3,43.53129891]
[1755045538275,21.0999,4618.4,4618.3,43.53129891]
[1755045538550,21.0999,4618.4,4618.3,41.366]
[1755045538712,21.0999,4618.4,4618.3,43.53129891]
[1755045539757,22.3299,4618.4,4618.3,43.53129891]
[1755045540521,22.3299,4618.4,4618.3,37.995]
[1755045540838,22.3299,4618.4,4618.3,24.697902]
[1755045541040,21.1337,4618.4,4618.3,43.53129891]
[1755045541243,23.5988,4618.4,4618.3,38.27389961]
[1755045541446,20.682,4618.4,4618.3,41.366]
[1755045541650,20.682,4618.4,4618.3,43.53129891]
[1755045542334,18.222,4618.4,4618.3,43.81019852]
[1755045542520,10.69312602,4618.4,4618.3,44.26989852]
[1755045542725,10.69312602,4618.4,4618.3,43.81019852]
[1755045543046,10.69312602,4618.4,4618.3,13.81019852]
[1755045543247,1.23,4619.3,4618.9,2.16501764]
[1755045543551,1.23,4619.3,4618.9,35.53601764]
[1755045543945,1.23,4619.3,4618.9,35.64401764]
[1755045544312,1.23,4619.3,4619.2,2.71487703]
[1755045544534,1.23,4619.3,4619.2,35.53487703]
[1755045544720,1.23,4619.3,4619.2,35.64287703]
[1755045544953,2.46,4619.3,4619.2,35.64287703]
[1755045545817,2.46,4619.3,4619.2,36.19287703]
[1755045546054,2.46,4619.3,4619.2,36.93147664]
[1755045546420,3.69,4619.3,4619.2,36.93147664]
[1755045546836,1.232,4619.4,4619.3,2.71483016]
[1755045547042,1.232,4619.4,4619.3,40.55972977]
[1755045547353,3.54053222,4620.0,4619.9,2.71454901]
[1755045547354,1e-08,4620.0,4619.9,2.71454901]
[1755045547648,1e-08,4620.0,4619.9,10.85712936]
[1755045547859,0.003,4623.7,4620.6,0.55]
[1755045547860,2.4651,4622.2,4620.6,0.55]
[1755045548014,0.003,4623.7,4623.2,0.108]
[1755045548215,0.003,4623.7,4623.3,20.464498]
[1755045548444,0.003,4623.7,4623.3,15.529788]
[1755045548652,2.4681,4623.4,4623.3,15.529788]
[1755045548862,2.9181,4623.4,4623.3,15.529788]
[1755045549064,2.9181,4623.4,4623.3,17.69274519]
[1755045549378,1.683,4623.4,4623.3,35.64095719]
[1755045549589,1.233,4623.4,4623.3,35.64095719]
[1755045550289,1.233,4623.4,4623.3,35.80389888]
[1755045550781,2.463,4623.4,4623.3,35.80389888]
[1755045551188,2.4671,4624.4,4623.3,34.19094169]
[1755045551189,1e-08,4624.4,4623.3,34.19094169]
[1755045551494,1e-08,4624.4,4624.3,2.71248945]
[1755045551696,0.002,4624.8,4624.7,2.71230241]
[1755045551896,0.002,4624.8,4624.7,36.08130241]
[1755045552105,0.45,4626.7,4625.3,2.16202192]
[1755045552305,0.45,4626.7,4625.3,36.51490066]
[1755045552605,1e-08,4625.4,4625.3,38.11662192]
[1755045552901,2.4651,4627.3,4626.4,2.16150458]
[1755045553113,0.45,4627.2,4626.5,34.04731945]
[1755045553339,0.45,4627.2,4625.3,2.2699983]
[1755045553340,0.015,4629.0,4627.2,16.139463]
[1755045553526,0.015,4629.0,4627.3,1.975754]
[1755045553667,2.16085435,4627.8,4627.2,0.108]
[1755045553870,2.16085435,4627.8,4623.4,1.02591936]
[1755045553871,2.16127612,4626.9,4624.6,0.34444071]
[1755045554236,2.16127612,4626.9,4626.2,0.108]
[1755045554237,0.55,4626.8,4626.2,0.108]
[1755045554509,2.26056345,4628.5,4625.9,0.108]
[1755045554510,0.108,4626.6,4625.9,0.108]
[1755045554716,0.108,4626.6,4623.2,0.546149]
[1755045554717,3.4651,4626.5,4623.2,0.38566107]
[1755045554869,0.108,4625.4,4623.3,25.022844]
[1755045555069,2.16217851,4625.0,4624.5,0.108]
[1755045555297,2.16216216,4625.0,4624.5,0.108]
[1755045555506,2.16216216,4625.0,4623.2,0.086449]
[1755045555507,2.9151,4624.9,4624.6,5.185]
[1755045555706,2.71230241,4624.7,4624.6,5.185]
[1755045556007,5.73540241,4624.7,4624.6,8.614]
[1755045556910,0.55,4624.6,4623.0,5.185]
[1755045557206,2.16249437,4624.3,4623.0,5.185]
[1755045557410,2.9151,4624.2,4623.1,23.578347]
[1755045557626,1.0,4624.1,4623.0,5.185]
[1755045557787,0.108,4623.4,4623.1,7.161961]
[1755045558121,0.45,4623.3,4623.0,5.185]
[1755045558283,0.45,4623.3,4623.1,33.429]
[1755045558473,0.45,4623.3,4623.2,30.108]
[1755045558669,2.9151,4623.8,4623.2,30.108]
[1755045558874,0.29151,4623.7,4623.3,30.0]
[1755045559068,0.45,4623.6,4623.1,3.429]
[1755045559274,2.4651,4624.0,4623.6,0.108]
[1755045559474,2.4651,4623.9,4623.7,21.483362]
[1755045559711,0.108,4624.4,4623.8,20.151407]
[1755045559712,2.5731,4624.4,4623.8,20.151407]
[1755045559948,0.45,4624.3,4623.8,20.259407]
[1755045560154,0.45,4624.3,4624.2,0.108]
[1755045560324,0.45,4624.3,4624.2,3.538]
[1755045560647,2.9151,4624.3,4624.2,6.39693]
[1755045561152,2.9151,4624.3,4624.2,3.43]
[1755045561153,3.21999,4624.3,4624.2,3.43]
[1755045562348,4.44999,4624.3,4624.2,3.43]
[1755045563050,0.55,4624.2,4623.8,0.108]
[1755045563406,2.71262975,4624.0,4623.9,3.426]
[1755045563538,3.4651,4624.0,4623.9,3.426]
[1755045563715,3.5731,4624.0,4623.9,3.426]
[1755045564519,5.73572975,4624.0,4623.9,3.426]
[1755045564858,3.5731,4624.0,4623.9,3.426]
[1755045565018,5.70007451,4624.0,4623.9,3.426]
[1755045565218,7.86270426,4624.0,4623.9,3.426]
[1755045565419,5.70007451,4624.0,4623.0,5.185]
[1755045565719,5.70007451,4624.0,4623.1,3.425]
[1755045565720,0.108,4623.3,4623.1,3.425]
[1755045565924,2.9151,4623.2,4623.1,3.425]
[1755045566156,3.21741,4623.2,4623.1,3.425]
[1755045566731,3.21741,4623.2,4623.0,5.185]
[1755045566920,2.9151,4623.1,4623.0,5.185]
[1755045567132,0.30231,4623.2,4623.1,16.608549]
[1755045567133,0.108,4623.2,4623.1,16.608549]
[1755045567337,1.23,4623.3,4623.2,30.0]
[1755045567563,1.23,4623.3,4623.2,33.04765278]
[1755045567845,1.23,4623.3,4623.2,18.150547]
[1755045568046,1.23,4623.3,4623.2,0.34444071]
[1755045568247,1.23,4623.3,4623.2,33.04765278]
[1755045568472,1.23,4623.3,4623.2,32.74844071]
[1755045568996,1.23,4623.3,4623.2,24.119931]
[1755045569270,2.46,4623.3,4623.1,30.0]
[1755045570680,2.46,4623.3,4623.2,26.125308]
[1755045570681,3.69,4623.3,4623.2,26.125308]
[1755045570837,3.69,4623.3,4623.1,30.0]
[1755045571669,3.69,4623.3,4623.2,0.648336]
[1755045571969,4.92,4623.3,4623.2,28.012687]
[1755045572195,5.3649,4623.3,4623.2,0.648336]
[1755045572349,8.3257,4623.3,4623.2,3.418]
[1755045572877,8.3257,4623.3,4623.2,24.574353]
[1755045573081,8.3257,4623.3,4623.2,22.828615]
[1755045573388,9.5557,4623.3,4623.2,22.828615]
[1755045573566,9.5557,4623.3,4623.2,19.893915]
[1755045573744,6.15,4623.3,4623.2,33.418]
[1755045573948,6.15,4623.3,4623.2,36.01314071]
[1755045574161,6.15,4623.3,4623.2,35.6687]
[1755045574473,6.15,4623.3,4623.2,36.01314071]
[1755045574686,7.38,4623.3,4623.2,36.01314071]
[1755045574891,7.38,4623.3,4623.2,38.94095675]
[1755045575471,7.38,4623.3,4623.2,38.64174468]
[1755045576174,8.61,4623.3,4623.2,38.64174468]
[1755045576976,8.61,4623.3,4623.2,38.17614468]
[1755045577181,8.61,4623.3,4623.2,37.83170397]
[1755045577692,9.84,4623.3,4623.2,30.0]
[1755045577899,9.84,4623.3,4623.2,11.249887]
[1755045578461,9.84,4623.3,4623.2,15.66359097]
[1755045578665,9.84,4623.3,4623.2,16.77284375]
[1755045578866,9.84,4623.3,4623.2,38.93595675]
[1755045579066,11.07,4623.3,4623.2,39.58423775]
[1755045580291,12.3,4623.3,4623.2,39.58423775]
[1755045580595,12.3,4623.3,4623.2,39.28502568]
[1755045580796,12.3,4623.3,4623.2,36.311981]
[1755045581001,12.3,4623.3,4623.2,34.061281]
[1755045581201,12.3,4623.3,4623.2,36.22428497]
[1755045581701,13.53,4623.3,4623.2,36.22428497]
[1755045582001,13.53,4623.3,4623.2,34.061281]
[1755045582306,13.53,4623.3,4623.2,36.22428497]
[1755045583106,14.76,4623.3,4623.2,36.22428497]
[1755045584000,14.76,4623.3,4623.2,36.33228497]
[1755045584201,14.76,4623.3,4623.2,39.04858497]
[1755045584404,15.99,4623.3,4623.2,39.69223775]
[1755045585405,0.89727307,4623.3,4623.2,40.45863775]
[1755045585704,2.12727307,4623.3,4623.2,39.25998497]
[1755045586092,1.23,4624.0,4623.9,2.37907652]
[1755045586290,1.23,4624.7,4623.9,2.37907652]
[1755045586291,1.23,4624.7,4624.6,2.16234917]
[1755045586469,1.23,4624.7,4624.6,38.61304917]
[1755045586671,1.23,4624.7,4624.6,38.14744917]
[1755045587309,2.46,4624.7,4624.6,38.14744917]
[1755045587921,0.4449,4626.7,4624.9,2.37860891]
[1755045588076,0.4449,4626.7,4625.8,2.16174227]
[1755045588268,0.4449,4626.7,4626.5,0.108]
[1755045588502,2.4688,4627.0,4626.5,0.108]
[1755045588503,1.6749,4626.6,4626.5,26.382155]
[1755045588700,1.6749,4626.6,4626.5,33.518]
[1755045588905,1.6749,4626.6,4626.5,24.96433]
[1755045588906,5.3737,4626.6,4626.5,24.96433]
[1755045589102,5.3737,4626.6,4626.5,12.562132]
[1755045589280,5.3737,4626.6,4626.5,4.164924]
[1755045590195,7.14107,4626.6,4626.5,3.407]
[1755045590382,7.14107,4626.6,4626.5,6.633975]
[1755045590584,7.14107,4626.6,4626.5,3.407]
[1755045590792,7.24907,4626.6,4626.5,3.407]
[1755045590967,0.55,4626.5,4625.9,5.183]
[1755045591297,0.658,4626.1,4626.0,3.407]
[1755045591497,3.5717,4626.1,4625.9,5.183]
[1755045591806,3.4637,4626.0,4625.9,5.183]
[1755045592113,3.4637,4626.0,4625.9,8.589]
[1755045592420,5.62539476,4626.0,4625.9,5.183]
[1755045592569,5.43256476,4626.0,4625.9,3.406]
[1755045592772,3.82087,4626.0,4625.9,3.406]
[1755045592997,3.92887,4626.0,4625.3,5.183]
[1755045593181,0.55,4625.8,4625.4,3.407]
[1755045593377,0.392887,4625.7,4625.4,3.407]
[1755045593703,2.81992844,4625.5,4625.3,5.183]
[1755045593887,2.81992844,4625.5,4625.4,3.407]
[1755045594484,5.73362844,4625.5,4625.4,3.407]
[1755045594788,2.71197518,4625.4,4625.3,5.183]
[1755045594988,6.23832672,4625.4,4625.3,8.589]
[1755045595588,6.23832672,4625.4,4625.3,8.588]
[1755045596607,4.75635154,4625.4,4625.3,8.588]
[1755045596903,5.41435154,4625.4,4625.3,8.588]
[1755045597877,6.64435154,4625.4,4625.3,8.588]
[1755045598075,8.80632672,4625.4,4625.3,8.588]
[1755045599217,6.64435154,4625.4,4625.3,8.588]
[1755045599407,7.87435154,4625.4,4625.3,8.588]
[1755045599785,10.03632672,4625.4,4625.3,5.183]
[1755045599985,10.03632672,4625.4,4625.3,8.586]
[1755045600327,10.03632672,4625.4,4623.7,0.108]
[1755045600328,2.71206866,4625.2,4625.1,5.183]
[1755045600623,4.05671068,4625.2,4625.1,8.586]
[1755045600827,2.16244269,4624.4,4624.3,5.183]
[1755045600975,5.71674269,4624.4,4624.3,8.586]
[1755045601181,4.34221165,4624.4,4624.3,8.586]
[1755045601431,5.60874269,4624.4,4624.3,5.183]
[1755045601611,5.60874269,4624.4,4624.3,8.587]
[1755045602129,6.83874269,4624.4,4624.3,8.587]
[1755045602310,6.83874269,4624.4,4624.3,5.183]
[1755045602621,6.83874269,4624.4,4624.3,8.588]
[1755045602792,7.73885434,4624.4,4624.3,8.588]
[1755045603311,7.73885434,4624.4,4622.7,0.001]
[1755045603312,0.55,4622.9,4622.7,0.001]
[1755045603513,0.55,4623.0,4622.8,5.184]
[1755045603718,0.8212978,4623.0,4622.8,5.184]
[1755045603875,0.55,4623.3,4622.8,5.184]
[1755045604076,2.46664202,4625.2,4622.8,5.184]
[1755045604278,2.46,4624.4,4622.9,25.17030871]
[1755045604508,2.46,4624.4,4623.0,30.767801]
[1755045604681,2.46,4624.4,4623.1,30.0]
[1755045604878,3.69,4624.4,4623.2,3.406]
[1755045605113,6.1258,4624.4,4622.8,5.184]
[1755045605314,1.0105,4624.3,4622.9,7.412478]
[1755045605611,0.55,4624.1,4623.0,3.406]
[1755045605813,2.8963,4624.2,4623.1,3.406]
[1755045605814,0.55,4623.4,4623.1,3.406]
[1755045605977,0.55,4623.2,4623.1,3.406]
[1755045606178,1.0105,4623.2,4623.1,3.406]
[1755045606378,3.4463,4623.2,4622.8,5.184]
[1755045606617,2.71309755,4623.0,4622.9,3.406]
[1755045606915,5.60939755,4623.0,4622.9,3.406]
[1755045607208,0.55,4623.5,4622.9,3.406]
[1755045607587,1.23,4623.2,4622.9,3.406]
[1755045607913,1.23,4623.2,4622.8,5.184]
[1755045608117,1.23,4623.2,4623.0,3.407]
[1755045608451,1.23,4623.2,4623.1,11.155285]
[1755045608609,1.23,4623.2,4623.1,4.274552]
[1755045608811,1.23,4623.2,4623.1,3.407]
[1755045609011,2.46,4623.2,4623.1,3.408]
[1755045609194,2.46,4623.2,4622.8,5.184]
[1755045609393,2.46,4623.2,4622.9,3.407]
[1755045609616,2.706,4623.2,4622.9,3.407]
[1755045610419,2.46,4623.2,4622.9,3.407]
[1755045610617,3.69,4623.2,4622.9,3.407]
[1755045610985,3.69,4623.2,4623.0,14.583716]
[1755045611319,3.69,4623.2,4623.1,6.2019]
[1755045611498,3.69,4623.2,4623.1,30.682651]
[1755045611694,3.69,4623.2,4623.1,28.416698]
[1755045611917,3.69,4623.2,4623.1,11.84406]
[1755045612116,4.92,4623.2,4623.1,5.427565]
[1755045612317,4.92,4623.2,4623.1,8.232607]
[1755045612523,4.92,4623.2,4623.1,7.7211]
[1755045612707,4.92,4623.2,4623.1,3.409]
[1755045613518,6.6105,4623.2,4623.1,3.408]
[1755045613889,6.15,4623.2,4623.1,8.326812]
[1755045614094,6.15,4623.2,4623.1,8.66614147]
[1755045614290,6.15,4623.2,4623.1,3.408]
[1755045614488,6.15,4623.2,4622.8,5.184]
[1755045614724,6.15,4623.2,4622.9,3.415]
[1755045614901,7.38,4623.2,4622.9,3.415]
[1755045615818,7.38,4623.2,4622.9,4.06349]
[1755045615819,8.118,4623.2,4622.9,4.06349]
[1755045615986,8.5785,4623.2,4623.0,0.2164]
[1755045616325,9.898,4623.2,4623.1,3.42]
[1755045616527,9.16,4623.2,4623.1,3.42]
[1755045616738,8.61,4623.2,4623.1,15.57465171]
[1755045616897,8.61,4623.2,4623.1,15.28600171]
[1755045617092,8.61,4623.2,4623.1,18.08090171]
[1755045617505,9.84,4623.2,4623.1,20.15996176]
[1755045617710,9.84,4623.2,4623.1,36.4311]
[1755045618050,9.84,4623.2,4623.1,16.363791]
[1755045618529,9.84,4623.2,4623.1,18.97074176]
[1755045618729,9.84,4623.2,4623.1,38.59415076]
[1755045618913,11.07,4623.2,4623.1,38.59415076]
[1755045619430,11.07,4623.2,4623.1,39.19355354]
[1755045620017,11.07,4623.2,4623.1,36.73129071]
[1755045620225,11.07,4623.2,4623.1,16.12527]
[1755045620534,12.3,4623.2,4623.1,18.28832076]
[1755045620696,12.3,4623.2,4623.1,5.771]
[1755045620897,12.3,4623.2,4623.1,22.50265076]
[1755045621099,12.3,4623.2,4623.1,23.01904147]
[1755045621302,12.3,4623.2,4623.1,23.31925354]
[1755045621601,12.3,4623.2,4623.1,22.71885076]
[1755045621801,13.53,4623.2,4623.1,38.59415076]
[1755045622231,13.53,4623.2,4623.1,38.89434147]
[1755045622896,13.53,4623.2,4623.1,38.59415076]
[1755045623099,14.76,4623.2,4623.1,38.59415076]
[1755045623829,14.76,4623.2,4623.1,19.913335]
[1755045623998,14.76,4623.2,4623.1,16.697735]
[1755045624531,15.99,4623.2,4623.1,2.212808]
[1755045624826,15.99,4623.2,4623.1,8.793338]
[1755045625026,15.99,4623.2,4623.1,5.620339]
[1755045625229,15.99,4623.2,4623.1,3.421]
[1755045625431,18.8863,4623.2,4623.1,3.421]
[1755045625936,20.1163,4623.2,4623.1,3.421]
[1755045626603,21.14198388,4623.2,4623.1,3.421]
[1755045627227,18.9105,4623.2,4623.1,3.421]
[1755045628007,21.3463,4623.2,4623.1,3.421]
[1755045628653,22.5763,4623.2,4623.1,3.421]
[1755045629210,23.1263,4623.2,4623.1,3.421]
[1755045630033,24.3563,4623.2,4623.1,3.421]
[1755045630240,26.56285568,4623.2,4623.1,3.421]
[1755045631536,27.79285568,4623.2,4623.1,3.421]
[1755045632219,22.14,4623.2,4623.1,3.421]
[1755045632409,22.14,4623.2,4623.1,3.72119071]
[1755045632610,22.14,4623.2,4623.1,33.421]
[1755045632946,23.37,4623.2,4623.1,36.77959071]
[1755045633118,23.37,4623.2,4623.1,36.4794]
[1755045633449,23.37,4623.2,4623.1,36.0212]
[1755045634012,24.6,4623.2,4623.1,36.0212]
[1755045634613,24.6,4623.2,4623.1,6.0212]
[1755045634833,24.6,4623.2,4623.1,36.0212]